[Event "*** MasterClass Titled Tuesday Blitz"]
[Site "Chess.com"]
[Date "2017.11.07"]
[Round "10"]
[White "champ2005"]
[Black "Giorno"]
[Result "1/2-1/2"]
[WhiteElo "2439"]
[BlackElo "2347"]
[TimeControl "180+2"]
[EndTime "16:22:40 PST"]
[Termination "Game drawn by stalemate"]

1. e4 {[%clk 0:03:01.9]} 1... Nf6 {[%clk 0:02:57]} 2. e5 {[%clk 0:03:02.5]} 2...
Nd5 {[%clk 0:02:58.2]} 3. d4 {[%clk 0:03:03.9]} 3... d6 {[%clk 0:02:59.5]} 4.
Nf3 {[%clk 0:03:05.4]} 4... dxe5 {[%clk 0:02:59.7]} 5. Nxe5 {[%clk 0:03:06.1]}
5... c6 {[%clk 0:03:01.1]} 6. Bd3 {[%clk 0:03:04]} 6... g6 {[%clk 0:03:01.1]} 7.
O-O {[%clk 0:03:05]} 7... Bg7 {[%clk 0:03:02.5]} 8. Qe2 {[%clk 0:03:02.2]} 8...
O-O {[%clk 0:03:02.5]} 9. c3 {[%clk 0:03:01.6]} 9... Nd7 {[%clk 0:02:54]} 10.
Na3 {[%clk 0:02:57.8]} 10... Nxe5 {[%clk 0:02:44.8]} 11. dxe5 {[%clk 0:02:58.3]}
11... Qc7 {[%clk 0:02:42.9]} 12. f4 {[%clk 0:02:58.1]} 12... f6 {[%clk
0:02:39.7]} 13. exf6 {[%clk 0:02:45.2]} 13... exf6 {[%clk 0:02:39.6]} 14. Bd2
{[%clk 0:02:45]} 14... Bd7 {[%clk 0:02:36.6]} 15. Qf2 {[%clk 0:02:41.3]} 15...
f5 {[%clk 0:02:27.8]} 16. Rae1 {[%clk 0:02:35.8]} 16... Rfe8 {[%clk 0:02:19.8]}
17. g3 {[%clk 0:02:35.8]} 17... b6 {[%clk 0:02:11.3]} 18. Nc2 {[%clk 0:02:29.8]}
18... Nf6 {[%clk 0:02:09.5]} 19. Be3 {[%clk 0:02:12.5]} 19... Ng4 {[%clk
0:02:07.8]} 20. Qd2 {[%clk 0:02:09.8]} 20... Nxe3 {[%clk 0:02:04.9]} 21. Nxe3
{[%clk 0:02:07.2]} 21... Be6 {[%clk 0:02:04.1]} 22. Bc4 {[%clk 0:02:07.3]} 22...
Qf7 {[%clk 0:02:04.1]} 23. Bxe6 {[%clk 0:01:50.4]} 23... Rxe6 {[%clk 0:02:03.9]}
24. Nc2 {[%clk 0:01:49]} 24... Rae8 {[%clk 0:02:02.8]} 25. b3 {[%clk 0:01:41.5]}
25... Qf6 {[%clk 0:01:59.2]} 26. c4 {[%clk 0:01:33.4]} 26... Rxe1 {[%clk
0:01:49.8]} 27. Rxe1 {[%clk 0:01:33.4]} 27... Rxe1+ {[%clk 0:01:49.8]} 28. Qxe1
{[%clk 0:01:34.1]} 28... Kf7 {[%clk 0:01:47.5]} 29. Qd2 {[%clk 0:01:09.2]} 29...
Qe7 {[%clk 0:01:46.1]} 30. Ne3 {[%clk 0:01:02.8]} 30... c5 {[%clk 0:01:41.5]}
31. Qd5+ {[%clk 0:00:53.1]} 31... Qe6 {[%clk 0:01:41.7]} 32. Qxe6+ {[%clk
0:00:52.8]} 32... Kxe6 {[%clk 0:01:42.7]} 33. Nd5 {[%clk 0:00:53.4]} 33... Bd4+
{[%clk 0:01:39.3]} 34. Kg2 {[%clk 0:00:54.6]} 34... Kd6 {[%clk 0:01:40.7]} 35.
Kf3 {[%clk 0:00:53]} 35... b5 {[%clk 0:01:40.8]} 36. h3 {[%clk 0:00:44.8]} 36...
bxc4 {[%clk 0:01:40.9]} 37. bxc4 {[%clk 0:00:45.4]} 37... Kc6 {[%clk 0:01:36.1]}
38. g4 {[%clk 0:00:46]} 38... fxg4+ {[%clk 0:01:29.6]} 39. Kxg4 {[%clk
0:00:38.7]} 39... Kd6 {[%clk 0:01:13.6]} 40. f5 {[%clk 0:00:34.4]} 40... gxf5+
{[%clk 0:01:13.7]} 41. Kxf5 {[%clk 0:00:35.3]} 41... h6 {[%clk 0:01:09.8]} 42.
h4 {[%clk 0:00:36]} 42... Bb2 {[%clk 0:01:08.1]} 43. h5 {[%clk 0:00:36.9]} 43...
Bc1 {[%clk 0:01:08.1]} 44. Nf6 {[%clk 0:00:35]} 44... Kc6 {[%clk 0:01:06.5]} 45.
Kg6 {[%clk 0:00:32.3]} 45... Kb6 {[%clk 0:01:06.1]} 46. Ng4 {[%clk 0:00:32.9]}
46... Ka5 {[%clk 0:01:07.2]} 47. Nxh6 {[%clk 0:00:34]} 47... Kb4 {[%clk
0:01:08.6]} 48. Nf7 {[%clk 0:00:35.3]} 48... Kxc4 {[%clk 0:01:09.2]} 49. Ng5
{[%clk 0:00:34.8]} 49... Bb2 {[%clk 0:01:07.1]} 50. h6 {[%clk 0:00:36]} 50...
Kb4 {[%clk 0:01:06.4]} 51. Ne6 {[%clk 0:00:37]} 51... c4 {[%clk 0:01:02.7]} 52.
Ng7 {[%clk 0:00:22.7]} 52... c3 {[%clk 0:01:02.8]} 53. h7 {[%clk 0:00:22.8]}
53... c2 {[%clk 0:01:03.9]} 54. h8=Q {[%clk 0:00:21.9]} 54... c1=Q {[%clk
0:01:05]} 55. Qb8+ {[%clk 0:00:22.4]} 55... Kc4 {[%clk 0:01:02.5]} 56. Qc7+
{[%clk 0:00:21.3]} 56... Kd3 {[%clk 0:01:03.5]} 57. Qd6+ {[%clk 0:00:19.8]}
57... Kc2 {[%clk 0:00:58.5]} 58. Qc7+ {[%clk 0:00:17.8]} 58... Bc3 {[%clk
0:00:58.1]} 59. Nf5 {[%clk 0:00:15.3]} 59... Qg1+ {[%clk 0:00:55.1]} 60. Kf7
{[%clk 0:00:16.5]} 60... Qf2 {[%clk 0:00:47.4]} 61. Ke6 {[%clk 0:00:12.3]} 61...
Kb2 {[%clk 0:00:45]} 62. Qc4 {[%clk 0:00:12]} 62... Qb6+ {[%clk 0:00:43.2]} 63.
Kd7 {[%clk 0:00:11.3]} 63... Qb7+ {[%clk 0:00:39.5]} 64. Ke6 {[%clk 0:00:12.5]}
64... Qb6+ {[%clk 0:00:38.8]} 65. Kd7 {[%clk 0:00:10.4]} 65... a5 {[%clk
0:00:38.8]} 66. Nd6 {[%clk 0:00:09.4]} 66... Qb4 {[%clk 0:00:25.1]} 67. Qe2+
{[%clk 0:00:08.2]} 67... Ka3 {[%clk 0:00:20.9]} 68. Nc4+ {[%clk 0:00:05.6]}
68... Ka4 {[%clk 0:00:21.8]} 69. Qc2+ {[%clk 0:00:06.6]} 69... Kb5 {[%clk
0:00:23]} 70. Nd6+ {[%clk 0:00:07.8]} 70... Kb6 {[%clk 0:00:18.9]} 71. Qf2+
{[%clk 0:00:08.8]} 71... Bd4 {[%clk 0:00:18.4]} 72. Qf8 {[%clk 0:00:09.4]} 72...
Qa4+ {[%clk 0:00:19.5]} 73. Ke7 {[%clk 0:00:08.4]} 73... Qc6 {[%clk 0:00:12.4]}
74. Qb8+ {[%clk 0:00:06.3]} 74... Ka6 {[%clk 0:00:12.5]} 75. a4 {[%clk
0:00:03.1]} 75... Bc5 {[%clk 0:00:11.4]} 76. Ke6 {[%clk 0:00:03.4]} 76... Bxd6
{[%clk 0:00:05.3]} 77. Qxd6 {[%clk 0:00:05.2]} 77... Kb6 {[%clk 0:00:06.7]} 78.
Ke5 {[%clk 0:00:05.4]} 78... Qxd6+ {[%clk 0:00:03.8]} 79. Kxd6 {[%clk
0:00:07.1]} 79... Ka6 {[%clk 0:00:05.4]} 80. Kc5 {[%clk 0:00:09]} 80... Kb7
{[%clk 0:00:06]} 81. Kb5 {[%clk 0:00:10.9]} 81... Ka7 {[%clk 0:00:07.4]} 82.
Kxa5 {[%clk 0:00:12.6]} 82... Kb7 {[%clk 0:00:09.3]} 83. Kb5 {[%clk 0:00:14.5]}
83... Ka7 {[%clk 0:00:11]} 84. a5 {[%clk 0:00:16.4]} 84... Kb7 {[%clk
0:00:12.3]} 85. a6+ {[%clk 0:00:18.3]} 85... Ka7 {[%clk 0:00:13.7]} 86. Ka5
{[%clk 0:00:20.1]} 86... Kb8 {[%clk 0:00:14.5]} 87. Kb6 {[%clk 0:00:22]} 87...
Ka8 {[%clk 0:00:15.6]} 88. a7 {[%clk 0:00:23.9]} 1/2-1/2